Cogmind - Beta 10.2 @@@ ROGUE MODE // 2022.01.16 @ 20:26:14 Player: kicktown Result: Destroyed by G-34 Mercenary with Small Laser Performance ------------- Evolutions (1) 500 Regions Visited (2) 400 Robots Destroyed (46) 230 Value Destroyed (945) 945 Prototype IDs (1) 20 Alien Tech Used (0) 0 Bonus (24) 24 TOTAL SCORE: 2119 Bonus ------- High Alert Combat Kills 24 Cogmind --------- Core Integrity 0/400 Matter 204/400 Energy 230/250 System Corruption 0% Temperature Cool (176) Movement Walking (150) Ox1 Location -9/Materials Parts ------- > --- POWER (1) -------- Ion Engine > --- PROPULSION (2) --- Aluminum Leg Armored Wheel > --- UTILITY (2) ------ Medium Matter Pod Tractor Beam > --- WEAPON (4) ------- Heavy EM Pulse Gun Improved Medium Laser Light Assault Rifle Heavy Assault Rifle > --- INVENTORY (4) ---- Heat Sink Medium Matter Pod (0) Grenade Launcher Mini Grenade Launcher Peak State ------------ > --- POWER ------------ Light Ion Engine > --- PROPULSION ------- Aluminum Leg Armored Wheel > --- UTILITY ---------- Medium Matter Pod Medium Matter Pod > --- WEAPON ----------- Heavy EM Pulse Gun Heavy EM Pulse Gun Heavy EM Pulse Gun Heavy Assault Rifle > --- INVENTORY -------- Grenade Launcher Mini Grenade Launcher [Rating: 14] Favorites ----------- Power Ion Engine Engine Ion Engine Propulsion Light Treads Treads Light Treads Leg Aluminum Leg Wheel Armored Wheel Utility Medium Matter Pod Device Tractor Beam Storage Medium Matter Pod Weapon Assault Rifle Energy Gun Medium Laser Ballistic Gun Assault Rifle Ballistic Cannon Light Cannon Launcher Grenade Launcher Impact Weapon Hammer Build | -11 -10 -9 ------- Run | Scr Mat Mat Slots Evolved 2 | . . 2 Power . | . . . Propulsion . | . . . Utility . | . . . Weapon 2 | . . 2 Parts Attached 50 | 8 6 36 Power 5 | 1 . 4 Engine 5 | 1 . 4 Core . | . . . Reactor . | . . . Propulsion 13 | 2 . 11 Treads 8 | 2 . 6 Leg 1 | . . 1 Wheel 4 | . . 4 Hover . | . . . Flight . | . . . Utility 8 | 3 . 5 Device 1 | . . 1 Storage 7 | 3 . 4 Processor . | . . . Hackware . | . . . Protection . | . . . Artifact . | . . . Weapon 24 | 2 6 16 Energy Gun 10 | 1 3 6 Energy Cannon . | . . . Ballistic Gun 6 | 1 . 5 Ballistic Cannon 1 | . 1 . Launcher 4 | . . 4 Special Weapon . | . . . Impact Weapon 3 | . 2 1 Slashing Weapon . | . . . Piercing Weapon . | . . . Special Melee Weapon . | . . . Unidentified Prototypes 1 | . . 1 Parts Lost 11 | . 1 10 Power 1 | . . 1 Propulsion 2 | . . 2 Utility 1 | . . 1 Weapon 7 | . 1 6 Highest Loss Streak 7 | . 1 7 Average Slot Usage (%) 92 | . 98 89 Engine 11 | . 14 10 Treads 19 | . 28 14 Wheel 2 | . . 3 Storage 23 | . 28 20 Energy Gun 7 | . 9 6 Ballistic Gun 11 | . 2 16 Ballistic Cannon 7 | . 13 3 Launcher 6 | . . 10 Naked Turns . | . . . Heaviest Build 21 | 13 14 21 Greatest Support 40 | 40 40 40 Greatest Overweight (x) 4 | . . 4 Average Overweight (x) . | . . . Largest Inventory Capacity 10 | 4 4 10 Average Capacity 4 | 4 4 4 Most Carried 4 | 4 4 4 Average Carried 3 | 2 3 3 Final Capacity 4 | 4 4 4 Final Carried 4 | 3 4 4 Class Distribution -------------------- 75% | Mutant 13% | Scavenger-Gunner 11% | Gunner Dominant Class ---------------- Mutant | -10/Materials Mutant | -9/Materials Resources | -11 -10 -9 ----------- Run | Scr Mat Mat Matter Collected 1129 | 463 95 571 Remotely . | . . . Salvage Created 1083 | 178 138 767 Parts 76 | 22 8 46 Haulers Intercepted 1 | . . 1 Recyclers Shooed . | . . . Parts Field Recycled . | . . . Retrieved Matter . | . . . Parts Self-Destructed . | . . . Prevented . | . . . Kills | -11 -10 -9 ------- Run | Scr Mat Mat Combat Hostiles Destroyed 32 | . 6 26 Guns 18 | . 2 16 Cannons 5 | . 4 1 AOE 9 | . . 9 Classes Destroyed 8 | 2 2 4 Worker 5 | 4 . 1 Tunneler 6 | 5 . 1 Hauler 1 | . . 1 Operator 1 | . . 1 Watcher 1 | . . 1 Swarmer 13 | . 3 10 Grunt 14 | . 3 11 Sentry 5 | . . 5 Best Kill Streak 7 | 5 3 7 Combat Bots Only 6 | . 3 6 Max Kills in Single Turn 3 | 1 1 3 Gunslinging . | . . . Exploded 2 | . . 2 Melee . | . . . Uniques/NPCs Destroyed . | . . . Combat | -11 -10 -9 -------- Run | Scr Mat Mat Damage Taken 1946 | . 267 1679 Core 440 | . 32 408 Absorbed by Shields . | . . . Core Remaining (%) 93 | 100 87 . Volleys Fired 104 | 16 25 63 Largest 4 | 2 2 4 Hottest 158 | 70 85 158 Shots Fired 220 | 32 46 142 Gun 166 | 32 21 113 Cannon 36 | . 25 11 Launcher 18 | . . 18 Special . | . . . Kinetic 128 | 16 25 87 Thermal 61 | 16 21 24 Explosive 18 | . . 18 Electromagnetic 13 | . . 13 Robot Hit Streak 13 | 10 4 13 Robot Miss Streak 6 | 1 6 3 Penetration Max . | . . . Secondary Targets 3 | . . 3 Max Gunslinging Chain 1 | . . 1 Shots Hit Robots 117 | 22 17 78 Core Hits 65 | 9 7 49 Critical Hits . | . . . Critical Kills . | . . . Critical Parts Destroyed . | . . . Melee Attacks 9 | . 9 . Impact 9 | . 9 . Slashing . | . . . Piercing . | . . . Sneak Attacks . | . . . Combat Hostiles . | . . . Follow-up Attacks . | . . . Damage Inflicted 2576 | 239 269 2068 Guns 1329 | 239 101 989 Cannons 258 | . 168 90 Explosions 986 | . . 986 Melee . | . . . Ramming 3 | . . 3 Kinetic 1031 | 91 168 772 Thermal 500 | 148 101 251 Explosive 942 | . . 942 Electromagnetic 100 | . . 100 Impact . | . . . Slashing . | . . . Piercing . | . . . Highest Corruption 2 | . 2 . Average Corruption 2 | . 2 . Corruption Purged . | . . . Effects 6 | . 6 . Message Errors 2 | . 2 . Heat Flow Errors 1 | . 1 . Energy Discharges 2 | . 2 . Data Loss (minor) 1 | . 1 . Overload Shots . | . . . Overflow Damage 41 | . 1 40 Projectiles 1 | . 1 . Explosions 40 | . . 40 Melee . | . . . Knockbacks 1 | . 1 . Impact . | . . . Kinetic 1 | . 1 . Secondary . | . . . Self-Inflicted Damage 40 | . . 40 Shots 3 | . . 3 Rammed 1 | . . 1 Targets Rammed 1 | . . 1 Kicked . | . . . Crushed . | . . . Highest Temperature 318 | 45 297 318 Average Temperature 76 | 13 95 84 Received Heat Transfer 603 | . 108 495 Effects 1 | . . 1 Energy Bleed 1 | . . 1 Siege Activations . | . . . Robots Corrupted . | . . . Combat Hostiles . | . . . Parts Fried . | . . . Impact Corruptions . | . . . Robots Melted . | . . . Combat Hostiles . | . . . Parts Melted 1 | . 1 . Heat Transferred 1308 | 444 296 568 Parts Sabotaged . | . . . Parts Stolen . | . . . Parts Stripped . | . . . Power Chain Reactions 1 | . . 1 Missiles Intercepted . | . . . Alert | -11 -10 -9 ------- Run | Scr Mat Mat Peak Influence 484 | 45 189 484 Initial 29 | . 29 5 Average 137 | 16 99 212 Maximum Alert Level 2 | . . 2 Low Security (%) 79 | 100 100 59 Level 1 17 | . . 35 Level 2 2 | . . 5 Level 3 . | . . . Level 4 . | . . . Level 5 . | . . . High Security . | . . . Max Security . | . . . Squads Dispatched 7 | . 2 5 Investigation 2 | . 1 1 Extermination . | . . . Reinforcement 5 | . 1 4 Assault . | . . . Garrison . | . . . Intercept . | . . . Construction Impeded 2 | . . 2 Haulers Reinforced . | . . . Stealth | -11 -10 -9 --------- Run | Scr Mat Mat Distress Signals 1 | . 1 . Communications Jammed . | . . . Distress Signals . | . . . Times Spotted 44 | . 9 35 Peak Tracking Total 6 | . 4 6 Tactical Retreats 1 | . . 1 Traps | -11 -10 -9 ------- Run | Scr Mat Mat Traps Triggered 3 | . 2 1 Indirectly . | . . . Trap Hack Attempts . | . . . Triggered . | . . . Disarmed . | . . . Reprogrammed . | . . . Reused . | . . . Traps Extracted . | . . . Installed . | . . . Triggered . | . . . Machines | -11 -10 -9 ---------- Run | Scr Mat Mat Machines Disabled 2 | . . 2 Max in Single Turn 2 | . . 2 Machines Sabotaged . | . . . Garrisons Compromised . | . . . Overloaded Fab Kills . | . . . Fab Network Shutdowns . | . . . Hacking | -11 -10 -9 --------- Run | Scr Mat Mat Machines Accessed 8 | . 2 6 Terminals 8 | . 2 6 Fabricators . | . . . Repair Stations . | . . . Recycling Units . | . . . Scanalyzers . | . . . Garrison Access . | . . . Total Hacks 8 | . 2 6 Successful . | . . . Failed 8 | . 2 6 Catastrophic 3 | . . 3 Database Lockouts . | . . . Manual 8 | . 2 6 Terminals 8 | . 2 6 Fabricators . | . . . Repair Stations . | . . . Recycling Units . | . . . Scanalyzers . | . . . Garrison Access . | . . . Terminal Hacks . | . . . Fabricator Hacks . | . . . Repair Station Hacks . | . . . Recycling Unit Hacks . | . . . Scanalyzer . | . . . Garrison Access Hacks . | . . . Unauthorized Hacks . | . . . Terminals . | . . . Fabricators . | . . . Repair Stations . | . . . Recycling Units . | . . . Scanalyzers . | . . . Garrison Access . | . . . Data Cores Recovered . | . . . Used . | . . . Hacking Detections 7 | . 2 5 Full Trace Events . | . . . Feedback Events . | . . . Feedback Blocked . | . . . Robot Schematics Acquired . | . . . Robots Built . | . . . Matter . | . . . Time . | . . . Total Robot Build Rating . | . . . Part Schematics Acquired . | . . . Parts Built . | . . . Matter . | . . . Time . | . . . Total Part Build Rating . | . . . Parts Repaired . | . . . Time . | . . . Parts Recycled . | . . . Recycled Matter . | . . . Retrieved Matter . | . . . Retrieved Components . | . . . Parts Scanalyzed . | . . . Part Schematics Acquired . | . . . Parts Damaged . | . . . Bothacking | -11 -10 -9 ------------ Run | Scr Mat Mat Used RIF Installer . | . . . Robots Hacked . | . . . Non-combat . | . . . Combat . | . . . Robot Hacks Applied . | . . . Relay Couplers Released . | . . . Robots Rewired . | . . . Allies Hacked . | . . . Hacks Repelled . | . . . Allies | -11 -10 -9 -------- Run | Scr Mat Mat Total Allies . | . . . Largest Group . | . . . Highest-Rated Group . | . . . Highest-Rated Ally . | . . . Total Orders . | . . . Ally Attacks . | . . . Total Damage . | . . . Kills . | . . . Allies Corrupted . | . . . Allies Melted . | . . . Intel | -11 -10 -9 ------- Run | Scr Mat Mat Robot Analysis Total . | . . . Derelict Logs Recovered . | . . . Drone Launches . | . . . Drone Recoveries . | . . . Exploration | -11 -10 -9 ------------- Run | Scr Mat Mat Turns Passed 1697 | 374 486 837 Spaces Moved 782 | 188 215 379 Core 27 | 3 . 24 Treads 591 | 185 215 191 Legs . | . . . Wheels 164 | . . 164 Hover . | . . . Flight . | . . . Fastest Speed 50 | 50 160 100 Average Speed 148 | 158 160 137 Slowest Speed 250 | 160 160 250 Overloaded Moves . | . . . Propulsion Burnouts . | . . . Robots Hopped . | . . . Cave-ins Triggered . | . . . Exploration Rate (%) 35 | 9 48 48 Regions Visited 2 Branch Regions . Pre-discovered Areas . | . . . Known Exits Taken . | . . . Unknown Exits Taken 2 | 1 1 . Scrap Searched . | . . . Spaces Dug 5 | . 5 . Terrain Destroyed 92 | . 5 87 Melee 5 | . 5 . Projectile . | . . . AOE 87 | . . 87 Terrain Rammed . | . . . Walls Destroyed . | . . . Machines Disabled . | . . . Actions | -11 -10 -9 --------- Run | Scr Mat Mat Total 1108 | 233 296 579 Wait 119 | 10 39 70 Move 780 | 187 214 379 Hop . | . . . Pick Up 26 | 11 2 13 Fast Attach 11 | . 1 10 Attach 16 | 7 1 8 Detach 1 | . . 1 Swap 23 | 1 4 18 Drop 18 | 1 1 16 Fire 104 | 16 25 63 Melee 9 | . 9 . Ram . | . . . Kick . | . . . Crush 1 | . . 1 Escape Stasis . | . . . Rewire . | . . . Trap . | . . . Miscellaneous . | . . . Route ------- -11/Scrapyard -10/Materials -9/Materials History --------- Turn | Location | Event 10 | -11/Scrapyard | Discovered new exit (range 15) 375 | -11/Scrapyard | Entered Materials 378 | -10/Materials | Build established: Mutant 844 | -10/Materials | Discovered new exit (range 12) 861 | -10/Materials | Entered another Materials area 861 | -9/Materials | Evolved 2 slots: Weapon x2 1464 | -9/Materials | Core integrity fell below 50% 1506 | -9/Materials | Core integrity fell below 20% 1557 | -9/Materials | Lost 7 parts (1p2n1u3w) 1698 | -9/Materials | Destroyed by G-34 Mercenary with Small Laser Last Messages --------------- 01665_ U-05 Engineer lays Concrete. 01666_ U-05 Engineer builds a Wall. 01666_ U-05 Engineer lays Concrete. 01668_ Acquired 10 matter. 01668_ T-07 Excavator is excavating. 01668_ U-05 Engineer lays Concrete. 01672_ U-05 Engineer builds a Wall. 01672_ Acquired Tractor Beam. 01672_ U-05 Engineer lays Concrete. 01672_ T-07 Excavator is excavating. 01672_ U-05 Engineer lays Concrete. 01676_ T-07 Excavator is excavating. 01678_ K-01 Serf collects debris. 01683_ U-05 Engineer lays Concrete. 01686_ Dropped Hvy. EM Pulse Gun. 01687_ Acquired Prototype Energy Gun. 01687_ Identified Imp. Medium Laser. 01694_ G-34 Mercenary destroyed. 01694_ Switching to secondary target: G-34 Mercenary. 01697_ U-05 Engineer lays Concrete. Map ----- +----------------------------------------------------+ | ????????????????????????????????????????????? | | ????????????????????????????????????????????? | | ????????????????????????????????????????????? | | ????????????????????????????????????????????? | | ????????????????????????????????????????????? | | ????????????????????????????????????????????? | | ????????????????????????????????????????????? | | ????????????????????????????????????????????? | | ????????????????????????????????????????????? | | ????????????????????????????????????????????? | | ????????????????????????????????????????????? | | ????????????????????????????????????????????? | | ????????????????????????????????????????????? | | ????????????????????????????????????????????? | | ?????????????????? ?????????#??????????????? | | ??????????????????? "?????? #??????????????? | | ??????????????????? "????? #??????????????? | | ??????????????????? "????? #??????????????? | | ???????????#??????? ????? #"""???????????? | | ???????????# #######+#####m #"T"##?????????? | | ???????????? ^ k ?????????? | | ?????????????? ??????? | | ???????????????? u ?????? | | ?????????????????# ????? | | ?????????????????# ![ ????? | | ?????????????????# [@! """" ????? | | ?????????????????# """" """????? | | ?????????????????# """" R?????? | | ?????????????????# """#???? | | ?????????????????# #???? | | ?????????????????# #???? | | ?????????????????# gu ####???????? | | ?????????????????########%= #??????????? | | ????????????????????????#=* !! #??????????? | | ??????????????????????### !! k#??????????? | | ????????????????????# # ! #??????????? | | ????????????????????# ! +??????????? | | ????????????????????# # #??????????? | | ????????????????????#?# #### #??????????? | | ??????????????????????# #?## #??????????? | | ??????????????????????# ???# #??????????? | | ??????????????????????# ???# #??????????? | | ?????????????????????? ???# #??????????? | | ????????????????????? ???# #??????????? | | ???????????????????? ???# #??????????? | | ???????????????????? ???# ###########? | | ???????????????????### ???# # ## | | ???????????????????########### # """ # | | ???????????????????# + # """ # | | ???????????????????# "T" #^ #* """ # | +----------------------------------------------------+ Best States ------------- Heat Dissipation 28 Energy Generation 12 Energy Capacity 265 Matter Stores 476 Matter Capacity 500 Sight Range 16 Terrain Scan Density 10 Evasion (%) 40 Recoil Reduction 2 Item Schematics ----------------- None Robot Schematics ------------------ None Fabricated ------------ Nothing Alien Tech Used ----------------- None Achievements -------------- None Challenges ------------ None Game ------ Seed BoreRecyclingScreen Manual? 0 Play Time 00:22:17 Cumulative 39.7 hours Start 2022.01.16 @ 19:59:40 End 2022.01.16 @ 20:26:14 Sessions 1 Manual Loads 0 Difficulty Rogue Special Mode None Game No. 22 Rogue 22 Adventurer 0 Explorer 0 Win Type - Total 0 Types 0/0/0/0/0/0/0/0/0 Lore% 25 Gallery% 39 Achievement% 27 Wizard Run 0 Options --------- ASCII 0 Keyboard 0 Movement Mouse Keybinds 0 Fullscreen 2 Font 18/TerminusBold Map View 76x50 Tactical HUD 1 Map Filters NONE Filters NONE Steam 1 RUN: 7fd83d2a-9714-4595-a053-dcf83c1723fc